fUST/lending_fUST_20250107
["ID","MTS","AMOUNT","RATE_DAILY","PERIOD"]
[347910027,1736194249988,-500.0,0.00020273,3]
[347910028,1736194249997,-500.0,0.00020273,3]
[347910030,1736194250007,-500.0,0.00020273,3]
[347910032,1736194250016,-569.02,0.00020273,3]
[347910034,1736194250026,-500.0,0.00020273,3]
[347910036,1736194250035,-500.0,0.00020273,3]
[347910038,1736194250045,-481.62727348,0.00020273,3]
[347910040,1736194250055,-500.0,0.00020273,3]
[347910043,1736194250064,-500.0,0.00020273,3]
[347910044,1736194250074,-500.0,0.00020273,3]
[347910046,1736194250083,-730.74,0.00020273,3]
[347910048,1736194250093,-500.0,0.00020273,3]
[347910050,1736194250102,-500.0,0.00020273,3]
[347910052,1736194250112,-500.0,0.00020273,3]
[347910054,1736194250121,-500.0,0.00020273,3]
[347910056,1736194250130,-500.0,0.00020273,3]
[347910059,1736194250140,-500.0,0.00020273,3]
[347910061,1736194250150,-500.0,0.00020273,3]
[347910062,1736194250159,-581.59,0.00020273,3]
[347910065,1736194250169,-500.0,0.00020273,3]
[347910066,1736194250181,-533.24,0.00020273,3]
[347910069,1736194250190,-500.0,0.00020273,3]
[347910070,1736194250200,-551.7,0.00020273,3]
[347910073,1736194250210,-500.0,0.00020273,3]
[347910075,1736194250219,-500.0,0.00020273,3]
[347910077,1736194250229,-500.0,0.00020273,3]
[347910079,1736194250238,-500.0,0.00020273,3]
[347910081,1736194250247,-500.0,0.00020273,3]
[347910083,1736194250257,-500.0,0.00020273,3]
[347910085,1736194250266,-500.0,0.00020273,3]
[347910087,1736194250276,-500.0,0.00020273,3]
[347910089,1736194250286,-500.0,0.00020273,3]
[347910091,1736194250295,-500.0,0.00020273,3]
[347910093,1736194250304,-523.19,0.00020273,3]
[347910095,1736194250314,-500.0,0.00020273,3]
[347910097,1736194250323,-500.0,0.00020273,3]
[347910098,1736194250332,-473.34,0.00020273,3]
[347910100,1736194250342,-500.0,0.00020273,3]
[347910102,1736194250352,-500.0,0.00020273,3]
[347910104,1736194250362,-500.0,0.00020273,3]
[347910106,1736194250371,-500.0,0.00020273,3]
[347910108,1736194250381,-500.0,0.00020273,3]
[347910111,1736194250391,-500.0,0.00020273,3]
[347910113,1736194250400,-500.0,0.00020273,3]
[347910115,1736194250410,-3899.39,0.00020273,3]
[347910116,1736194250419,-1359.7,0.00020273,3]
[347910119,1736194250430,-500.0,0.00020273,3]
[347910121,1736194250439,-500.0,0.00020273,3]
[347910123,1736194250448,-743.58,0.00020273,3]
[347910125,1736194250457,-500.0,0.00020273,3]
[347910127,1736194250467,-632.54,0.00020273,3]
[347910129,1736194250476,-500.0,0.00020273,3]
[347910131,1736194250486,-500.0,0.00020273,3]
[347910133,1736194250495,-853.37,0.00020273,3]
[347910135,1736194250505,-500.0,0.00020273,3]
[347910137,1736194250515,-1346.54,0.00020273,3]
[347910139,1736194250525,-500.0,0.00020273,3]
[347910141,1736194250534,-500.0,0.00020273,3]
[347910143,1736194250544,-1308.79,0.00020273,3]
[347910145,1736194250553,-500.0,0.00020273,3]
[347910147,1736194250562,-500.0,0.00020273,3]
[347910149,1736194250572,-1780.8,0.00020273,3]
[347910151,1736194250581,-500.0,0.00020273,3]
[347910153,1736194250590,-79.00093248,0.00020273,3]
[347910166,1736194250701,-420.99906752,0.00020273,3]
[347910168,1736194250711,-830.59,0.00020273,3]
[347910170,1736194250720,-500.0,0.00020273,3]
[347910172,1736194250729,-632.89,0.00020273,3]
[347910174,1736194250739,-1075.81,0.00020273,3]
[347910176,1736194250750,-500.0,0.00020273,3]
[347910178,1736194250759,-787.14,0.00020273,3]
[347910180,1736194250768,-500.0,0.00020273,3]
[347910182,1736194250778,-500.0,0.00020273,3]
[347910184,1736194250788,-500.0,0.00020273,3]
[347910186,1736194250799,-500.0,0.00020273,3]
[347910188,1736194250809,-962.64,0.00020273,3]
[347910190,1736194250820,-500.0,0.00020273,3]
[347910192,1736194250830,-1457.20462329,0.00020273,3]
[347910467,1736194306027,930.16,0.00024958,120]
[347910468,1736194306556,930.16,0.00024958,120]
[347910469,1736194306810,930.16,0.00024958,120]
[347910470,1736194307061,930.16,0.00024958,120]
[347910471,1736194307310,930.16,0.00024958,120]
[347910472,1736194307534,930.16,0.00024958,120]
[347910473,1736194307773,930.16,0.00024958,120]
[347910474,1736194308028,930.16,0.00024958,120]
[347910475,1736194308318,930.16,0.00024958,120]
[347910476,1736194308724,930.16,0.00024958,120]
[347910477,1736194308984,930.16,0.00024958,120]
[347910478,1736194309226,930.16,0.00024958,120]
[347910479,1736194309470,930.16,0.00024958,120]
[347910480,1736194309716,930.16,0.00024958,120]
[347910481,1736194309975,930.16,0.00024958,120]
[347910482,1736194310236,930.16,0.00024958,120]
[347910483,1736194310492,930.16,0.00024958,120]
[347910484,1736194310742,930.16,0.00024958,120]
[347910485,1736194310995,930.16,0.00024958,120]
[347910486,1736194311233,930.16,0.00024958,120]
[347910487,1736194311479,930.16,0.00024958,120]
[347910488,1736194311728,930.16,0.00024958,120]
[347910489,1736194312073,930.16,0.00024958,120]
[347910490,1736194312220,930.32751981,0.00024958,120]
[347910492,1736194350886,160.0,0.00022741,120]
[347910493,1736194410808,160.0,0.00023292,120]
[347910495,1736194470832,160.0,0.00023779,120]
[347910496,1736194530745,160.0,0.00023613,120]
[347910497,1736194590732,160.0,0.00023982,120]
[347910498,1736194650814,160.0,0.00022459,120]
[347910499,1736194658390,496.2664726,0.00015001,2]
[347910500,1736194711071,160.0,0.00022459,120]
[347910501,1736194770791,160.0,0.00024134,120]
[347910502,1736194791816,179.441523,0.0002411,120]
[347910503,1736194823748,196.2664726,0.00015001,2]
[347910504,1736194830541,160.0,0.00024545,120]
[347910505,1736194890757,160.0,0.00024577,120]
[347910506,1736194950728,160.0,0.00021977,120]
[347910507,1736194998870,213.6329361,0.00015001,2]
[347910508,1736195007805,213.6329361,0.00015001,2]
[347910509,1736195010939,160.0,0.00022493,120]
[347910510,1736195055688,159.815482,0.00013973,2]
[347910511,1736195067019,592.99309612,0.00015001,2]
[347910512,1736195070508,160.0,0.0002415,120]
[347910513,1736195075472,592.99309612,0.00015001,2]
[347910514,1736195130754,160.0,0.0002245,120]
[347910516,1736195190909,160.0,0.00023591,120]
[347910517,1736195244099,-1000.0,0.00015001,2]
[347910518,1736195244120,-682.012137,0.00016492,2]
[347910519,1736195244140,-250.0,0.00016684,2]
[347910520,1736195244160,-802.3068563,0.00016815,2]
[347910521,1736195244180,-76565.04231619,0.00017418,2]
[347910522,1736195245096,-74834.95768381,0.00017418,2]
[347910523,1736195245118,-300.0,0.00017418,2]
[347910524,1736195245139,-300.47249339,0.00017419,2]
[347910525,1736195245159,-4223.69570595,0.00017419,2]
[347910526,1736195245178,-212.94654298,0.00017419,2]
[347910527,1736195245199,-770.59450345,0.00017421,2]
[347910528,1736195245220,-151.0,0.00017509,2]
[347910529,1736195245240,-152.0,0.00017513,2]
[347910530,1736195245260,-500.0,0.00017517,2]
[347910531,1736195245279,-500.0,0.00017517,2]
[347910532,1736195245298,-500.0,0.00017517,2]
[347910533,1736195245318,-500.0,0.00017517,2]
[347910534,1736195245337,-500.0,0.00017517,2]
[347910535,1736195245358,-500.0,0.00017517,2]
[347910536,1736195245380,-500.0,0.00017517,2]
[347910537,1736195245400,-500.0,0.00017517,2]
[347910538,1736195245421,-564.45414859,0.00017517,2]
[347910539,1736195245442,-500.0,0.00017517,2]
[347910540,1736195245464,-500.0,0.00017517,2]
[347910541,1736195245484,-500.0,0.00017517,2]
[347910542,1736195245505,-500.0,0.00017517,2]
[347910543,1736195245526,-500.0,0.00017517,2]
[347910544,1736195245545,-500.0,0.00017517,2]
[347910545,1736195245564,-500.0,0.00017517,2]
[347910546,1736195245584,-255.47494498,0.00017517,2]
[347910547,1736195245604,-500.0,0.00017517,2]
[347910548,1736195245624,-500.0,0.00017517,2]
[347910549,1736195245643,-500.0,0.00017517,2]
[347910550,1736195245663,-500.0,0.00017517,2]
[347910551,1736195245684,-545.82224924,0.00017517,2]
[347910552,1736195245705,-879.61402244,0.00017517,2]
[347910553,1736195245727,-879.61402244,0.00017517,2]
[347910554,1736195245749,-879.61402244,0.00017517,2]
[347910555,1736195245772,-879.61402244,0.00017517,2]
[347910556,1736195245794,-879.61402244,0.00017517,2]
[347910557,1736195245815,-879.61402244,0.00017517,2]
[347910558,1736195245836,-879.61402244,0.00017517,2]
[347910559,1736195245857,-879.61402244,0.00017517,2]
[347910560,1736195245878,-879.61402244,0.00017517,2]
[347910561,1736195245899,-879.61402244,0.00017517,2]
[347910562,1736195245921,-879.61402244,0.00017517,2]
[347910563,1736195245942,-879.61402244,0.00017517,2]
[347910564,1736195245963,-879.61402244,0.00017517,2]
[347910565,1736195245984,-879.61402244,0.00017517,2]
[347910566,1736195246005,-879.61402244,0.00017517,2]
[347910567,1736195246026,-879.61402244,0.00017517,2]
[347910568,1736195246047,-879.61402244,0.00017517,2]
[347910569,1736195246069,-879.61402244,0.00017517,2]
[347910570,1736195246091,-879.61402244,0.00017517,2]
[347910571,1736195246113,-879.61402244,0.00017517,2]
[347910572,1736195246135,-879.61402244,0.00017517,2]
[347910573,1736195246157,-879.61402244,0.00017517,2]
[347910574,1736195246178,-879.61402244,0.00017517,2]
[347910575,1736195246201,-879.61402244,0.00017517,2]
[347910576,1736195246224,-879.61402244,0.00017517,2]
[347910577,1736195246247,-879.61402244,0.00017517,2]
[347910578,1736195246268,-348.79543406,0.00017517,2]
[347910579,1736195246292,-879.61402244,0.00017517,2]
[347910580,1736195246314,-879.61402244,0.00017517,2]
[347910581,1736195246338,-879.61402244,0.00017517,2]
[347910582,1736195246364,-879.61402244,0.00017517,2]
[347910583,1736195246387,-879.61402244,0.00017517,2]
[347910584,1736195246409,-879.61402244,0.00017517,2]
[347910585,1736195246432,-879.61402244,0.00017517,2]
[347910586,1736195246456,-879.61402244,0.00017517,2]
[347910587,1736195246478,-879.61402244,0.00017517,2]
[347910588,1736195246688,-879.61402244,0.00017517,2]
[347910589,1736195246712,-879.61402244,0.00017517,2]
[347910590,1736195246738,-879.61402244,0.00017517,2]
[347910591,1736195246762,-879.61402244,0.00017517,2]
[347910592,1736195246783,-879.61402244,0.00017517,2]
[347910593,1736195246804,-879.61402244,0.00017517,2]
[347910594,1736195246825,-879.61402244,0.00017517,2]
[347910595,1736195246845,-879.61402244,0.00017517,2]
[347910596,1736195246866,-879.61402244,0.00017517,2]
[347910597,1736195246887,-879.61402244,0.00017517,2]
[347910598,1736195246909,-879.61402244,0.00017517,2]
[347910599,1736195246931,-879.61402244,0.00017517,2]
[347910600,1736195246951,-879.61402244,0.00017517,2]
[347910601,1736195246972,-879.61402244,0.00017517,2]
[347910602,1736195246993,-879.61402244,0.00017517,2]
[347910603,1736195247016,-879.61402244,0.00017517,2]
[347910604,1736195247039,-879.61402244,0.00017517,2]
[347910605,1736195247061,-879.61402244,0.00017517,2]
[347910606,1736195247083,-879.61402244,0.00017517,2]
[347910607,1736195247104,-24900.0,0.00017519,2]
[347910608,1736195247126,-1635.764243,0.00017557,2]
[347910609,1736195247147,-1634.229883,0.00017623,2]
[347910610,1736195247167,-259.10340746,0.00017795,2]
[347910611,1736195247187,-770.59450342,0.00017835,2]
[347910612,1736195247207,-192.0,0.00017907,2]
[347910613,1736195247226,-1952.94636199,0.00017928,2]
[347910614,1736195247245,-190.02328871,0.00018057,2]
[347910615,1736195247265,-300.47249339,0.0001822,2]
[347910616,1736195247286,-770.59450342,0.0001825,2]
[347910617,1736195247311,-244.0,0.00018309,2]
[347910618,1736195247332,-161.925953,0.00018426,2]
[347910619,1736195247352,-161.925953,0.00018431,2]
[347910620,1736195247374,-161.925953,0.00018436,2]
[347910621,1736195247394,-161.925953,0.00018441,2]
[347910622,1736195247414,-161.925953,0.00018446,2]
[347910623,1736195247435,-161.925953,0.00018451,2]
[347910624,1736195247456,-161.925953,0.00018456,2]
[347910625,1736195247478,-161.925953,0.00018462,2]
[347910626,1736195247497,-161.925953,0.00018467,2]
[347910627,1736195247521,-161.925953,0.00018472,2]
[347910628,1736195247542,-161.925953,0.00018477,2]
[347910629,1736195247561,-161.925953,0.00018482,2]
[347910630,1736195247580,-161.925953,0.00018487,2]
[347910631,1736195247600,-161.925953,0.00018492,2]
[347910632,1736195247620,-161.925953,0.00018497,2]
[347910633,1736195247640,-161.925953,0.00018502,2]
[347910634,1736195247659,-161.925953,0.00018508,2]
[347910635,1736195247679,-161.925953,0.00018513,2]
[347910636,1736195247700,-161.925953,0.00018518,2]
[347910637,1736195247720,-153.47,0.000186,2]
[347910638,1736195247744,-429.97811293,0.000186,2]
[347910639,1736195247769,-429.97811292,0.000186,2]
[347910640,1736195247797,-429.97811292,0.000186,2]
[347910641,1736195247823,-4252.4798566,0.000186,2]
[347910642,1736195247845,-4252.47985657,0.000186,2]
[347910643,1736195247868,-4252.47985657,0.000186,2]
[347910644,1736195247889,-4252.47985657,0.000186,2]
[347910645,1736195247911,-770.59450342,0.00018664,2]
[347910646,1736195247933,-4252.47985657,0.00018728,2]
[347910647,1736195247953,-950.00096135,0.000189,2]
[347910648,1736195247976,-313.60221499,0.00018934,2]
[347910649,1736195250782,160.0,0.00024328,120]
[347910650,1736195288477,389.68336838,0.000248,120]
[347910651,1736195299862,188.0,0.0002,120]
[347910652,1736195310833,160.0,0.00022798,120]
[347910653,1736195313786,1158.67767431,0.0002,120]
[347910654,1736195315910,1356.01734889,0.00025,120]
[347910655,1736195315994,497.73237717,0.00025,120]
[347910657,1736195318834,389.98373055,0.00025,120]
[347910659,1736195321137,6374.44188449,0.0002,120]
[347910662,1736195370804,160.0,0.00023147,120]
[347910669,1736195431267,160.0,0.00022288,120]
[347910712,1736195432023,-2530.2095,0.00016541,2]
[347910718,1736195432082,-493.65,0.00016541,2]
[347910728,1736195434868,-7351.1052613,0.00016541,2]
[347910729,1736195434881,-635.79707351,0.00016541,2]
[347910730,1736195434892,-398.47239643,0.00016541,2]
[347910731,1736195434950,-8811.0401455,0.00016541,2]
[347910732,1736195434987,-3468.50438331,0.00016541,2]
[347910733,1736195435004,-1211.22123995,0.00016541,2]
[347910734,1736195435014,-377.00001,0.00017,5]
[347910735,1736195435023,-2717.04700174,0.00017,2]
[347910736,1736195435033,-225.35437006,0.00017416,2]
[347910737,1736195435043,-185.70224873,0.00017416,2]
[347910738,1736195435052,-300.0,0.00017515,2]
[347910739,1736195435061,-169.14594692,0.00017515,2]
[347910740,1736195435071,-250.60832722,0.00017515,2]
[347910741,1736195435080,-282.8691388,0.00017515,2]
[347910742,1736195435090,-500.0,0.00017515,2]
[347910743,1736195435099,-500.0,0.00017515,2]
[347910744,1736195435109,-500.0,0.00017515,2]
[347910745,1736195435119,-500.0,0.00017515,2]
[347910746,1736195435128,-621.16456935,0.00017515,2]
[347910747,1736195435137,-500.0,0.00017515,2]
[347910748,1736195435147,-500.0,0.00017515,2]
[347910749,1736195435157,-173.82823873,0.00017515,2]
[347910750,1736195435166,-500.0,0.00017515,2]
[347910751,1736195435175,-500.0,0.00017515,2]
[347910752,1736195435185,-500.0,0.00017515,2]
[347910753,1736195435194,-500.0,0.00017515,2]
[347910754,1736195435205,-500.0,0.00017515,2]
[347910755,1736195435214,-500.0,0.00017515,2]
[347910756,1736195435223,-500.0,0.00017515,2]
[347910757,1736195435232,-500.0,0.00017515,2]
[347910758,1736195435242,-500.0,0.00017515,2]
[347910759,1736195435251,-500.0,0.00017515,2]
[347910760,1736195435260,-500.0,0.00017515,2]
[347910761,1736195435270,-635.45085305,0.00017515,2]
[347910762,1736195435279,-500.0,0.00017515,2]
[347910763,1736195435288,-500.0,0.00017515,2]
[347910764,1736195435298,-500.0,0.00017515,2]
[347910765,1736195435307,-500.0,0.00017515,2]
[347910766,1736195435319,-500.0,0.00017515,2]
[347910767,1736195435328,-500.0,0.00017515,2]
[347910768,1736195435338,-500.0,0.00017515,2]
[347910769,1736195435347,-500.0,0.00017515,2]
[347910770,1736195435356,-500.0,0.00017515,2]
[347910771,1736195435365,-533.83615817,0.00017515,2]
[347910772,1736195435375,-371.67530828,0.00017515,2]
[347910781,1736195437870,-128.32469172,0.00017515,2]
[347910782,1736195437879,-495.51656549,0.00017515,2]
[347910783,1736195437926,-4.48343451,0.00017515,2]
[347910784,1736195437933,-500.0,0.00017515,2]
[347910785,1736195437939,-500.0,0.00017515,2]
[347910786,1736195437946,-104.05851483,0.00017515,2]
[347910789,1736195439032,-395.94148517,0.00017515,2]
[347910790,1736195439041,-500.0,0.00017515,2]
[347910791,1736195439051,-500.0,0.00017515,2]
[347910792,1736195439060,-500.0,0.00017515,2]
[347910793,1736195439070,-500.0,0.00017515,2]
[347910794,1736195439079,-500.0,0.00017515,2]
[347910795,1736195439088,-500.0,0.00017515,2]
[347910796,1736195439098,-500.0,0.00017515,2]
[347910797,1736195439107,-500.0,0.00017515,2]
[347910798,1736195439116,-500.0,0.00017515,2]
[347910799,1736195439125,-500.0,0.00017515,2]
[347910800,1736195439134,-500.0,0.00017515,2]
[347910801,1736195439143,-500.0,0.00017515,2]
[347910802,1736195439152,-500.0,0.00017515,2]
[347910803,1736195439162,-500.0,0.00017515,2]
[347910804,1736195439171,-500.0,0.00017515,2]
[347910805,1736195439180,-328.30161291,0.00017515,2]
[347910806,1736195439189,-500.0,0.00017515,2]
[347910807,1736195439198,-500.0,0.00017515,2]
[347910808,1736195439207,-500.0,0.00017515,2]
[347910809,1736195439217,-500.0,0.00017515,2]
[347910810,1736195439226,-500.0,0.00017515,2]
[347910811,1736195439234,-500.0,0.00017515,2]
[347910812,1736195439244,-500.0,0.00017515,2]
[347910813,1736195439253,-500.0,0.00017515,2]
[347910814,1736195439262,-500.0,0.00017515,2]
[347910815,1736195439271,-500.0,0.00017515,2]
[347910816,1736195439281,-500.0,0.00017515,2]
[347910817,1736195439290,-500.0,0.00017515,2]
[347910818,1736195439299,-500.0,0.00017515,2]
[347910819,1736195439308,-500.0,0.00017515,2]
[347910820,1736195439317,-500.0,0.00017515,2]
[347910821,1736195439327,-500.0,0.00017515,2]
[347910822,1736195439335,-500.0,0.00017515,2]
[347910823,1736195439345,-500.0,0.00017515,2]
[347910824,1736195439354,-500.0,0.00017515,2]
[347910825,1736195439363,-500.0,0.00017515,2]
[347910826,1736195439372,-500.0,0.00017515,2]
[347910827,1736195439381,-500.0,0.00017515,2]
[347910828,1736195439391,-500.0,0.00017515,2]
[347910829,1736195439400,-500.0,0.00017515,2]
[347910830,1736195439409,-500.0,0.00017515,2]
[347910831,1736195439423,-500.0,0.00017515,2]
[347910832,1736195439432,-500.0,0.00017515,2]
[347910833,1736195439442,-500.0,0.00017515,2]
[347910834,1736195439452,-34.16734759,0.00017515,2]
[347910835,1736195439749,-465.83265241,0.00017515,2]
[347910836,1736195439759,-500.0,0.00017515,2]
[347910837,1736195439768,-377.64302677,0.00017515,2]
[347910838,1736195439778,-500.0,0.00017515,2]
[347910839,1736195439787,-326.16095632,0.00017515,2]
[347910840,1736195439798,-173.83904368,0.00017515,2]
[347910841,1736195439808,-272.10050233,0.00017515,2]
[347910842,1736195439820,-227.89949767,0.00017515,2]
[347910843,1736195439830,-500.0,0.00017515,2]
[347910844,1736195439839,-500.0,0.00017515,2]
[347910845,1736195439849,-500.0,0.00017515,2]
[347910846,1736195439858,-500.0,0.00017515,2]
[347910847,1736195439868,-500.0,0.00017515,2]
[347910848,1736195439877,-500.0,0.00017515,2]
[347910849,1736195439887,-500.0,0.00017515,2]
[347910850,1736195439896,-500.0,0.00017515,2]
[347910851,1736195439905,-500.0,0.00017515,2]
[347910852,1736195439915,-500.0,0.00017515,2]
[347910853,1736195439924,-500.0,0.00017515,2]
[347910854,1736195439934,-500.0,0.00017515,2]
[347910855,1736195439943,-500.0,0.00017515,2]
[347910856,1736195439952,-500.0,0.00017515,2]
[347910857,1736195439962,-500.0,0.00017515,2]
[347910858,1736195439971,-500.0,0.00017515,2]
[347910860,1736195439981,-500.0,0.00017515,2]
[347910862,1736195439990,-500.0,0.00017515,2]
[347910863,1736195439999,-500.0,0.00017515,2]
[347910865,1736195440009,-500.0,0.00017515,2]
[347910867,1736195440018,-451.98904117,0.00017515,2]
[347910868,1736195440030,-48.01095883,0.00017515,2]
[347910869,1736195440039,-500.0,0.00017515,2]
[347910870,1736195440049,-500.0,0.00017515,2]
[347910871,1736195440058,-500.0,0.00017515,2]
[347910872,1736195440067,-500.0,0.00017515,2]
[347910873,1736195440077,-500.0,0.00017515,2]
[347910874,1736195440086,-77.84481648,0.00017515,2]
[347910875,1736195440097,-422.15518352,0.00017515,2]
[347910876,1736195440107,-500.0,0.00017515,2]
[347910877,1736195440116,-500.0,0.00017515,2]
[347910878,1736195440125,-500.0,0.00017515,2]
[347910879,1736195440135,-500.0,0.00017515,2]
[347910880,1736195440144,-500.0,0.00017515,2]
[347910881,1736195440153,-500.0,0.00017515,2]
[347910882,1736195440163,-500.0,0.00017515,2]
[347910883,1736195440172,-500.0,0.00017515,2]
[347910884,1736195440181,-500.0,0.00017515,2]
[347910885,1736195440191,-500.0,0.00017515,2]
[347910886,1736195440200,-500.0,0.00017515,2]
[347910887,1736195440209,-500.0,0.00017515,2]
[347910888,1736195440218,-500.0,0.00017515,2]
[347910889,1736195440227,-500.0,0.00017515,2]
[347910890,1736195440236,-500.0,0.00017515,2]
[347910891,1736195440246,-500.0,0.00017515,2]
[347910892,1736195440255,-500.0,0.00017515,2]
[347910893,1736195440265,-500.0,0.00017515,2]
[347910894,1736195440274,-500.0,0.00017515,2]
[347910895,1736195440283,-500.0,0.00017515,2]
[347910896,1736195440293,-500.0,0.00017515,2]
[347910897,1736195440302,-500.0,0.00017515,2]
[347910898,1736195440311,-500.0,0.00017515,2]
[347910899,1736195440320,-500.0,0.00017515,2]
[347910900,1736195440330,-500.0,0.00017515,2]
[347910901,1736195440339,-500.0,0.00017515,2]
[347910902,1736195440348,-499.0,0.00017534,2]
[347910903,1736195440358,-244.73487958,0.000176,2]
[347910904,1736195440367,-399.55914103,0.000176,2]
[347910905,1736195440376,-500.0,0.000176,2]
[347910906,1736195440386,-500.0,0.000176,2]
[347910907,1736195440395,-267.31019212,0.000176,2]
[347910908,1736195440404,-500.0,0.000176,2]
[347910909,1736195440417,-338.53772778,0.000176,2]
[347910910,1736195440427,-228.9851098,0.000176,2]
[347910911,1736195440436,-501.01795844,0.000176,2]
[347910912,1736195440445,-410.78532785,0.000176,2]
[347910913,1736195440456,-185.70224869,0.00017832,2]
[347910914,1736195440467,-370.4841732,0.00017999,2]
[347910915,1736195440476,-500.0,0.00017999,2]
[347910916,1736195440485,-244.15680384,0.00017999,2]
[347910917,1736195440495,-546.54870889,0.00017999,2]
[347910918,1736195440504,-500.0,0.00017999,2]
[347910919,1736195440514,-33530.2827192,0.00018,2]
[347910920,1736195440523,-1000.0,0.00018148,2]
[347910921,1736195440533,-225.35437004,0.00018218,2]
[347910922,1736195440543,-185.70224869,0.00018247,2]
[347910923,1736195440552,-208.93722875,0.000185,2]
[347910924,1736195440561,-185.70224869,0.00018663,2]
[347910925,1736195440571,-633.33397423,0.000189,2]
[347910926,1736195440580,-499.0,0.00018904,4]
[347910927,1736195440589,-3938.87764158,0.00018934,2]
[347910928,1736195440599,-334.017,0.00018949,2]
[347910929,1736195440608,-225.35437004,0.0001902,2]
[347910930,1736195440617,-185.70224869,0.00019078,2]
[347910931,1736195440627,-8089.77459551,0.00019078,2]
[347910932,1736195440791,-476.01757013,0.00019078,2]
[347910933,1736195440804,-490.40668275,0.00019078,2]
[347910934,1736195440815,-2212.51398515,0.00019078,2]
[347910935,1736195440831,-13994.6044149,0.00019078,2]
[347910936,1736195440851,-7373.9131749,0.00019078,2]
[347910937,1736195440860,-420.0,0.0001912,2]
[347910938,1736195440869,-150.0,0.00019121,2]
[347910939,1736195440878,-4252.47985657,0.00019141,2]
[347910940,1736195440888,-1500.0,0.0001915,2]
[347910941,1736195440899,-500.0,0.00019173,2]
[347910942,1736195440913,-159.57825823,0.00019173,2]
[347910943,1736195440923,-500.0,0.00019173,2]
[347910944,1736195440934,-151.02804904,0.00019173,2]
[347910945,1736195440947,-500.0,0.00019173,2]
[347910946,1736195440958,-500.0,0.00019173,2]
[347910947,1736195440967,-500.0,0.00019173,2]
[347910948,1736195440976,-500.0,0.00019173,2]
[347910949,1736195440987,-500.0,0.00019178,2]
[347910950,1736195440996,-500.0,0.00019178,2]
[347910951,1736195441005,-500.0,0.00019178,2]
[347910952,1736195441014,-500.0,0.00019178,2]
[347910953,1736195441023,-500.0,0.00019178,2]
[347910954,1736195441032,-477.03911807,0.00019178,2]
[347910955,1736195441041,-500.0,0.00019178,2]
[347910956,1736195441051,-585.79436646,0.00019178,2]
[347910957,1736195441060,-500.0,0.00019178,2]
[347910958,1736195441076,-500.0,0.00019178,2]
[347910959,1736195441100,-500.0,0.00019178,2]
[347910960,1736195441109,-502.70866287,0.00019178,2]
[347910961,1736195441119,-500.0,0.00019178,2]
[347910962,1736195441129,-500.0,0.00019178,2]
[347910963,1736195441139,-501.58259512,0.00019178,2]
[347910964,1736195441149,-500.0,0.00019178,2]
[347910965,1736195441160,-500.0,0.00019178,2]
[347910966,1736195441169,-500.0,0.00019178,2]
[347910967,1736195441178,-500.0,0.00019178,2]
[347910968,1736195441187,-500.0,0.00019178,2]
[347910969,1736195441196,-500.0,0.00019178,2]
[347910970,1736195441206,-500.0,0.00019178,2]
[347910971,1736195441215,-500.0,0.00019178,2]